bitfinex/quotes_BTCUSD_20250508
["timestamp","ask_amount","ask_price","bid_price","bid_amount"]
[1746716408494,0.34,99496.0,99489.0,0.0163]
[1746716408712,0.35005126,99490.0,99485.0,0.00011488]
[1746716408917,0.35005105,99492.0,99487.0,0.20102957]
[1746716409126,0.55107401,99492.0,99488.0,0.20102793]
[1746716409331,0.55107401,99492.0,99489.0,0.20102722]
[1746716409751,0.34,99492.0,99489.0,0.20102722]
[1746716409958,0.55107104,99493.0,99487.0,0.20103126]
[1746716410181,0.55107104,99493.0,99486.0,0.20103331]
[1746716410182,0.01005126,99490.0,99486.0,0.20103331]
[1746716410386,0.34,99490.0,99487.0,0.20102984]
[1746716410585,0.01005116,99491.0,99487.0,0.20102984]
[1746716410785,0.01005105,99492.0,99487.0,0.20102984]
[1746716410997,0.01005126,99490.0,99487.0,0.20102984]
[1746716411227,0.21107058,99493.0,99487.0,0.20102984]
[1746716411228,0.34,99493.0,99489.0,0.20102531]
[1746716411414,0.01105105,99492.0,99489.0,0.20102531]
[1746716411614,0.35005116,99491.0,99488.0,0.002]
[1746716411881,0.34,99491.0,99490.0,0.20102522]
[1746716412080,0.34,99491.0,99490.0,0.23182522]
[1746716412505,0.34,99491.0,99490.0,0.20102522]
[1746716412708,0.34,99491.0,99488.0,0.20102803]
[1746716412709,0.34,99498.0,99491.0,0.2010232]
[1746716412988,0.20098495,99510.0,99494.0,0.20101625]
[1746716412989,0.01005055,99497.0,99494.0,0.20101625]
[1746716413193,0.34,99498.0,99497.0,0.20101108]
[1746716413402,0.36884385,99498.0,99494.0,0.20101625]
[1746716413805,0.0187934,99497.0,99495.0,0.20101387]
[1746716414003,0.0187934,99496.0,99495.0,0.20101387]
[1746716414146,0.0187934,99496.0,99494.0,0.20101625]
[1746716414348,0.01005085,99494.0,99491.0,0.20102166]
[1746716414544,0.0187934,99495.0,99492.0,0.20102046]
[1746716414743,0.0187934,99495.0,99490.0,0.002]
[1746716414945,0.20103331,99486.0,99485.0,0.00011488]
[1746716415157,0.34,99486.0,99485.0,0.00011488]
[1746716415363,0.55982671,99486.0,99485.0,0.00011488]
[1746716415601,0.66049363,99486.0,99485.0,0.00011488]
[1746716416009,0.69339363,99486.0,99485.0,0.00011488]
[1746716416214,0.69439363,99486.0,99485.0,0.00311488]
[1746716417721,0.69339363,99486.0,99485.0,0.00211488]
[1746716417929,0.69639363,99486.0,99485.0,0.00111488]
[1746716418132,0.66349363,99486.0,99485.0,0.00111488]
[1746716418332,0.66649363,99486.0,99485.0,0.00111488]
[1746716419119,0.0247934,99486.0,99485.0,0.00111488]
[1746716419313,0.12546032,99486.0,99485.0,0.00111488]
[1746716419488,0.44666692,99486.0,99485.0,0.00111488]
[1746716420321,0.346,99486.0,99485.0,0.00111488]
[1746716421142,0.54703331,99486.0,99485.0,0.00111488]
[1746716421713,0.346,99486.0,99485.0,0.00111488]
[1746716422120,0.346,99486.0,99485.0,0.01701488]
[1746716422467,0.346,99486.0,99485.0,0.00111488]
[1746716423664,0.006,99486.0,99485.0,0.03191488]
[1746716423863,0.016,99486.0,99485.0,0.23295021]
[1746716424527,0.01,99486.0,99485.0,0.23195021]
[1746716424909,0.012,99486.0,99485.0,0.23295021]
[1746716425113,0.014,99486.0,99485.0,0.23295021]
[1746716425324,0.01,99486.0,99485.0,0.00011488]
[1746716425534,0.35,99486.0,99485.0,0.00011488]
[1746716425732,0.351,99486.0,99485.0,0.00111488]
[1746716426772,0.351,99486.0,99485.0,0.03411488]
[1746716427174,0.011,99486.0,99485.0,0.03411488]
[1746716427437,0.011,99486.0,99485.0,0.03612491]
[1746716427639,0.011,99486.0,99485.0,0.1347818]
[1746716427848,0.011,99486.0,99485.0,0.18066872]
[1746716428121,0.011,99486.0,99485.0,0.18166872]
[1746716428334,0.01,99486.0,99485.0,0.16612779]
[1746716428744,0.011,99486.0,99485.0,0.16812779]
[1746716428949,0.011,99486.0,99485.0,0.17212779]
[1746716429149,0.01,99486.0,99485.0,0.42973115]
[1746716429511,0.011,99486.0,99485.0,0.43373115]
[1746716430118,0.011,99486.0,99485.0,0.53439807]
[1746716432673,0.011,99486.0,99485.0,0.54893892]
[1746716432913,0.011,99486.0,99485.0,0.96723892]
[1746716433145,0.01879213,99517.0,99516.0,0.2009727]
[1746716433353,0.01879213,99517.0,99516.0,0.2323727]
[1746716433566,0.01879213,99517.0,99516.0,0.33303962]
[1746716433772,0.01,99534.0,99519.0,0.20096664]
[1746716433985,0.01,99534.0,99519.0,0.33273356]
[1746716434200,0.01,99534.0,99519.0,0.34727441]
[1746716435061,0.003,99520.0,99519.0,0.34927441]
[1746716437986,0.003,99520.0,99519.0,0.34491675]
[1746716439022,0.01,99534.0,99533.0,0.21547923]
[1746716439226,0.01,99534.0,99533.0,0.34894615]
[1746716439433,0.01013674,99534.0,99533.0,0.34894615]
[1746716441191,0.01013674,99534.0,99533.0,0.35094615]
[1746716441831,0.01013674,99534.0,99533.0,0.3364053]
[1746716442042,0.01013674,99534.0,99533.0,0.3384053]
[1746716442906,0.01013674,99534.0,99533.0,0.35294615]
[1746716443115,0.002,99545.0,99544.0,0.21545702]
[1746716443380,0.002,99545.0,99544.0,1.12760394]
[1746716443596,0.00245681,99545.0,99544.0,1.12760394]
[1746716444431,0.01204066,99595.0,99569.0,0.23256573]
[1746716444661,0.01004167,99585.0,99569.0,0.20086573]
[1746716444882,0.00213696,99570.0,99569.0,0.20287403]
[1746716445538,0.00213696,99570.0,99569.0,0.33554095]
[1746716445746,0.00213696,99570.0,99569.0,0.31783265]
[1746716445965,0.00213696,99570.0,99569.0,0.30153265]
[1746716446386,0.00613696,99570.0,99569.0,0.30153265]
[1746716446870,0.00613696,99570.0,99566.0,0.2008708]
[1746716446871,0.01218014,99570.0,99566.0,0.2008708]
[1746716447109,0.00413696,99570.0,99563.0,0.01004389]
[1746716447346,0.00413696,99570.0,99548.0,0.4183]
[1746716447347,0.01004419,99560.0,99548.0,0.4183]
[1746716447575,0.20091415,99545.0,99544.0,0.36208]
[1746716447805,0.0100455,99547.0,99545.0,0.20091338]
[1746716447806,0.34,99547.0,99545.0,0.20091338]
[1746716448740,0.35004479,99554.0,99549.0,0.20090426]
[1746716449401,0.20091415,99545.0,99544.0,0.36208]
[1746716449616,0.0100454,99548.0,99544.0,0.36208]
[1746716449827,0.3500455,99547.0,99544.0,0.56299492]
[1746716450289,0.002,99545.0,99544.0,0.36208]
[1746716450525,0.55841415,99545.0,99544.0,0.36208]
[1746716450793,0.55641415,99545.0,99544.0,0.36208]
[1746716451246,0.34,99545.0,99544.0,0.36208]
[1746716451454,0.343,99545.0,99544.0,0.56299617]
[1746716451880,0.348,99545.0,99544.0,0.56299617]
[1746716453155,0.348,99545.0,99544.0,0.20091617]
[1746716454311,0.008,99545.0,99544.0,0.20091617]
[1746716454732,0.008,99545.0,99544.0,0.30158309]
[1746716454951,0.008,99545.0,99544.0,0.31728309]
[1746716455368,0.35004369,99565.0,99562.0,0.20087892]
[1746716455568,0.01004379,99564.0,99560.0,0.20088265]
[1746716455773,0.01004389,99563.0,99557.0,0.20088846]
[1746716455981,0.01004389,99563.0,99560.0,0.200883]
[1746716456197,0.35004379,99564.0,99561.0,0.20088004]
[1746716456600,0.35004379,99564.0,99562.0,0.20087956]
[1746716457013,0.01004389,99563.0,99560.0,0.200883]
[1746716457218,0.35004379,99564.0,99560.0,0.200883]
[1746716457458,0.009,99564.0,99561.0,0.2008797]
[1746716457676,0.009,99564.0,99562.0,0.20087985]
[1746716457897,0.34,99566.0,99565.0,0.2008738]
[1746716458113,0.34,99566.0,99565.0,0.04893893]
[1746716458545,0.01004308,99571.0,99568.0,0.20086759]
[1746716458810,0.35004338,99568.0,99565.0,0.04893893]
[1746716459021,0.35004338,99568.0,99560.0,0.2008797]
[1746716459022,0.01004358,99566.0,99560.0,0.2008797]
[1746716459229,0.35004338,99568.0,99546.0,0.20091032]
[1746716459230,0.01004459,99556.0,99546.0,0.20091032]
[1746716459437,0.01004459,99556.0,99539.0,0.01004631]
[1746716459438,0.010045,99552.0,99539.0,0.01004631]
[1746716459643,0.34,99552.0,99542.0,0.01004601]
[1746716459857,0.34,99552.0,99550.0,0.20090276]
[1746716460500,0.01873584,99551.0,99550.0,0.20090276]
[1746716461189,0.02173584,99552.0,99550.0,0.20090276]
[1746716461430,0.01973584,99552.0,99550.0,0.20090276]
[1746716461883,0.016,99549.0,99548.0,0.2009081]
[1746716462094,0.016,99549.0,99546.0,0.20091095]
[1746716462095,0.016,99549.0,99547.0,0.20090974]
[1746716462334,0.016,99549.0,99542.0,0.20091976]
[1746716462335,0.0100458,99544.0,99542.0,0.20091976]
[1746716462549,0.0260453,99549.0,99538.0,0.362]
[1746716462550,0.54092627,99539.0,99538.0,0.362]
[1746716462773,0.55732627,99539.0,99538.0,0.362]
[1746716462986,0.65799319,99539.0,99538.0,0.362]
[1746716463190,0.69242903,99539.0,99538.0,0.362]
[1746716463881,0.72193435,99539.0,99538.0,0.362]
[1746716464131,0.55735251,99526.0,99525.0,0.002]
[1746716464360,0.3564,99526.0,99525.0,0.002]
[1746716464585,0.3583167,99526.0,99525.0,0.002]
[1746716466367,0.3613167,99526.0,99525.0,0.002]
[1746716466811,0.34258086,99526.0,99525.0,0.002]
[1746716467016,0.34558086,99526.0,99525.0,0.002]
[1746716467429,0.34,99525.0,99524.0,0.15295515]
[1746716467642,4.562e-05,99525.0,99524.0,0.26892207]
[1746716468302,4.562e-05,99525.0,99524.0,0.28492207]
[1746716469221,4.562e-05,99525.0,99524.0,0.29946292]
[1746716469678,0.00204562,99525.0,99524.0,0.29946292]
[1746716470152,4.562e-05,99525.0,99524.0,0.29946292]
[1746716471044,0.05104562,99525.0,99524.0,0.29946292]
[1746716471297,0.05004562,99525.0,99524.0,0.29946292]
[1746716471497,0.06004562,99525.0,99524.0,0.30046292]
[1746716472002,0.06004562,99525.0,99524.0,0.28592207]
[1746716472271,0.06004562,99525.0,99524.0,0.28492207]
[1746716472547,0.06004562,99525.0,99524.0,0.29946292]
[1746716473285,0.06004562,99525.0,99524.0,0.30046292]
[1746716473733,0.01004562,99525.0,99524.0,0.30146292]
[1746716473961,0.01004562,99525.0,99524.0,0.29946292]
[1746716474191,0.01004562,99525.0,99524.0,0.30546292]
[1746716476305,0.002,99545.0,99544.0,0.15091617]
[1746716476576,0.00204564,99545.0,99544.0,0.25359178]
[1746716476832,0.00204564,99545.0,99544.0,0.28318309]
[1746716477548,0.00304564,99545.0,99544.0,0.28318309]
[1746716477789,0.00304564,99545.0,99544.0,0.29772394]
[1746716478235,0.00304564,99545.0,99544.0,0.71602394]
[1746716478478,0.00304564,99545.0,99544.0,0.70148309]
[1746716478890,0.00304564,99545.0,99544.0,0.71602394]
[1746716479141,0.00304564,99545.0,99544.0,0.26708309]
[1746716479628,0.00204564,99545.0,99544.0,0.26708309]
[1746716480158,0.00204564,99545.0,99544.0,0.71602394]
[1746716480408,0.00204564,99545.0,99544.0,0.71702394]
[1746716480724,0.00204564,99545.0,99544.0,0.71802394]
[1746716480929,0.00204564,99545.0,99544.0,0.71602394]
[1746716481171,0.00204564,99545.0,99544.0,0.71702394]
[1746716481905,0.00204564,99545.0,99544.0,0.71802394]
[1746716482166,0.00204564,99545.0,99544.0,0.70348309]
[1746716482435,0.00204564,99545.0,99544.0,0.71802394]
[1746716482700,0.00204564,99545.0,99544.0,0.71702394]
[1746716483172,0.00204564,99545.0,99544.0,0.72002394]
[1746716483497,0.00204564,99545.0,99544.0,1.12002394]
[1746716484296,0.00204564,99545.0,99544.0,1.46002394]
[1746716484754,0.00204564,99545.0,99544.0,1.47002394]
[1746716485366,0.00204564,99545.0,99544.0,1.46002394]
[1746716485800,0.00204564,99545.0,99544.0,1.47002394]
[1746716486570,0.00204564,99545.0,99544.0,1.46002394]
[1746716486775,0.00204564,99545.0,99544.0,1.45702394]
[1746716487023,0.00204564,99545.0,99544.0,1.45602394]
[1746716487224,0.00204564,99545.0,99544.0,1.46002394]
[1746716487461,0.00204564,99545.0,99544.0,1.46302394]
[1746716488083,0.002,99570.0,99544.0,1.46302394]
[1746716488084,0.002,99570.0,99569.0,0.24620658]
[1746716488310,0.002,99570.0,99569.0,0.7088335]
[1746716488311,0.00206879,99570.0,99569.0,0.7088335]
[1746716488920,0.00206879,99570.0,99569.0,0.66349265]
[1746716489342,0.00506879,99570.0,99569.0,0.66349265]
[1746716489764,0.00206879,99570.0,99569.0,0.66349265]
[1746716489963,0.00306879,99570.0,99569.0,0.66349265]
[1746716490207,0.00406879,99570.0,99569.0,0.66349265]
[1746716490379,0.00306879,99570.0,99569.0,0.66349265]
[1746716490595,0.00306879,99570.0,99569.0,0.67909265]
[1746716490952,0.00406879,99570.0,99569.0,0.67909265]
[1746716491174,0.00406879,99570.0,99569.0,0.7095335]
[1746716491412,0.00406879,99570.0,99569.0,0.72573072]
[1746716491627,0.00306879,99570.0,99569.0,0.72573072]
[1746716492097,0.00506879,99570.0,99569.0,0.72573072]
[1746716492299,0.00606879,99570.0,99569.0,0.72573072]
[1746716492625,0.00406879,99570.0,99569.0,0.72573072]
[1746716492829,0.00506879,99570.0,99569.0,1.09423072]
[1746716493027,0.00506879,99570.0,99569.0,0.69423072]
[1746716493229,0.00406879,99570.0,99569.0,0.69423072]
[1746716493449,0.00306879,99570.0,99569.0,0.69423072]
[1746716494137,0.00306879,99570.0,99569.0,0.6780335]
[1746716494343,0.00306879,99570.0,99569.0,0.6790335]
[1746716496667,0.00306879,99570.0,99569.0,0.6800335]
[1746716498453,0.00306879,99570.0,99569.0,0.7111335]
[1746716499496,0.002,99595.0,99594.0,0.20081531]
[1746716499899,0.00207337,99595.0,99594.0,0.20081531]
[1746716500714,0.00607337,99595.0,99594.0,0.20081531]
[1746716501088,0.00907337,99595.0,99594.0,0.20081531]
[1746716501293,0.00907337,99595.0,99594.0,0.22602848]
[1746716502659,0.00907337,99595.0,99594.0,0.20081531]
[1746716502884,0.02487337,99595.0,99594.0,0.20081531]
[1746716503470,0.00907337,99595.0,99594.0,0.20081531]
[1746716505350,0.00907337,99595.0,99594.0,0.20282317]
[1746716506255,0.00207337,99595.0,99594.0,0.20282317]
[1746716506463,0.00707337,99595.0,99594.0,0.20282317]
[1746716506676,0.00707337,99595.0,99594.0,0.20081531]
[1746716507103,0.00707337,99595.0,99588.0,0.36184]
[1746716507104,0.0154,99589.0,99588.0,0.36184]
[1746716508175,0.0324,99594.0,99593.0,0.20081689]
[1746716508617,0.01004086,99593.0,99576.0,0.36184]
[1746716508821,0.01004086,99593.0,99587.0,0.20082843]
[1746716508822,0.003,99589.0,99587.0,0.20082843]
[1746716509026,0.0316,99588.0,99587.0,0.20082843]
[1746716509487,0.0316,99588.0,99549.0,0.0100453]
[1746716509488,0.0157,99562.0,99549.0,0.0100453]
[1746716509720,0.0311,99561.0,99558.0,0.20088755]
[1746716509929,0.03056116,99560.0,99553.0,0.0100449]
[1746716510142,0.03056116,99560.0,99559.0,0.2008859]
[1746716510362,0.34,99563.0,99562.0,0.20087985]
[1746716510568,0.0162,99576.0,99575.0,0.20085362]
[1746716511458,0.34,99581.0,99579.0,0.20084365]
[1746716511683,0.0155,99588.0,99587.0,0.20082942]
[1746716511900,0.01004096,99592.0,99586.0,0.20082977]
[1746716511901,0.55086202,99592.0,99586.0,0.20082977]
[1746716512115,0.0161,99588.0,99587.0,0.20082804]
[1746716512329,0.002,99595.0,99587.0,0.20082804]
[1746716512736,0.004,99588.0,99587.0,0.20082804]
[1746716512962,0.004,99588.0,99587.0,0.20283625]
[1746716513177,0.004,99588.0,99587.0,0.20082804]
[1746716513387,0.002,99595.0,99587.0,0.20082804]
[1746716513594,0.004,99589.0,99587.0,0.20082804]
[1746716513973,0.004,99588.0,99587.0,0.20082804]
[1746716514415,0.004,99589.0,99587.0,0.20082804]
[1746716514621,0.008,99589.0,99587.0,0.20082804]
[1746716515441,0.008,99589.0,99588.0,0.00200819]
[1746716515442,0.005,99589.0,99588.0,0.00200819]
[1746716515651,0.005,99589.0,99588.0,0.10267483]
[1746716515859,0.001,99589.0,99588.0,0.10267483]
[1746716516483,0.005,99589.0,99588.0,0.10267483]
[1746716516693,0.005,99589.0,99588.0,0.10066692]
[1746716516891,0.009,99589.0,99588.0,0.10267484]
[1746716517097,0.005,99589.0,99588.0,0.10267484]
[1746716517275,0.009,99589.0,99588.0,0.10267484]
[1746716517642,0.005,99589.0,99588.0,0.10267484]
[1746716517910,0.006,99589.0,99588.0,0.10267484]
[1746716518258,0.006,99589.0,99588.0,0.11867484]
[1746716518489,0.006,99589.0,99588.0,0.10267484]
[1746716518682,0.002,99589.0,99588.0,0.10267484]
[1746716518912,0.002,99589.0,99588.0,0.11892926]
[1746716520675,0.23403885,99613.0,99609.0,0.20078329]
[1746716520800,0.0325,99612.0,99609.0,0.20078329]
[1746716521203,0.0325,99611.0,99609.0,0.20078329]
[1746716521412,0.01003945,99607.0,99604.0,0.2007943]
[1746716521629,0.01003915,99610.0,99603.0,0.20079663]
[1746716521882,0.01003925,99609.0,99600.0,0.20080134]
[1746716522004,0.0303,99609.0,99606.0,0.20079081]
[1746716522429,0.00013696,99610.0,99608.0,0.2007861]
[1746716522634,0.00013696,99610.0,99606.0,0.20079081]
[1746716522864,0.01003925,99609.0,99602.0,0.20079718]
[1746716523077,0.00413696,99610.0,99598.0,0.20080663]
[1746716523078,0.20079716,99603.0,99598.0,0.20080663]
[1746716523277,0.0319,99601.0,99598.0,0.20080663]
[1746716523477,0.0325,99602.0,99589.0,0.01004126]
[1746716523739,0.0166,99602.0,99601.0,0.20080054]
[1746716524119,0.003,99609.0,99600.0,0.01004016]
[1746716524321,0.003,99609.0,99607.0,0.20078725]
[1746716524647,0.00413696,99610.0,99609.0,0.20078506]
[1746716524931,0.00013696,99610.0,99609.0,0.30145198]
[1746716525472,0.00013696,99610.0,99609.0,0.32683066]
[1746716525859,0.00013696,99610.0,99609.0,0.31870939]
[1746716526105,0.00013696,99610.0,99609.0,0.31770939]
[1746716526322,0.00013696,99610.0,99609.0,0.001]
[1746716526527,0.00313696,99610.0,99609.0,0.001]
[1746716526729,0.00613696,99610.0,99609.0,0.001]
[1746716526941,0.20692001,99610.0,99609.0,0.001]
[1746716527088,0.23872001,99610.0,99609.0,0.001]
[1746716527297,0.67638693,99610.0,99609.0,0.001]
[1746716527472,0.67938693,99610.0,99609.0,0.001]
[1746716528149,0.67638693,99610.0,99609.0,0.001]
[1746716528351,0.69092778,99610.0,99609.0,0.001]
[1746716528557,0.69392778,99610.0,99609.0,0.001]
[1746716528763,0.69092778,99610.0,99609.0,0.001]
[1746716528937,0.68792778,99610.0,99609.0,0.001]
[1746716529164,0.69592778,99610.0,99609.0,0.002]
[1746716529367,0.69692778,99610.0,99609.0,0.002]
[1746716529699,0.70492778,99610.0,99609.0,0.003]
[1746716530542,0.69038693,99610.0,99609.0,0.003]
[1746716531743,0.74038693,99610.0,99609.0,0.003]
[1746716536092,0.75492778,99610.0,99609.0,0.003]
[1746716536993,0.05,99605.0,99575.0,0.002]
[1746716537192,0.55685161,99576.0,99575.0,0.002]
[1746716537640,0.65751853,99576.0,99575.0,0.002]
[1746716538292,0.68369169,99576.0,99575.0,0.003]
[1746716538721,0.68369169,99576.0,99575.0,0.002]
[1746716538931,0.66769169,99576.0,99575.0,0.002]
[1746716539136,0.47584008,99576.0,99575.0,0.003]
[1746716539351,0.37517316,99576.0,99575.0,0.20385362]
[1746716539566,0.346,99576.0,99575.0,0.003]
[1746716539781,0.009,99576.0,99575.0,0.003]
[1746716541035,0.003,99576.0,99575.0,0.002]
[1746716541300,0.004,99576.0,99575.0,0.002]
[1746716541512,0.004,99576.0,99575.0,0.0339]
[1746716541716,0.003,99576.0,99575.0,0.03590819]
[1746716541954,0.21083405,99605.0,99600.0,0.2008027]
[1746716542168,0.35003975,99604.0,99593.0,0.01004086]
[1746716542372,0.01003975,99604.0,99590.0,0.01004116]
[1746716542619,0.31163756,99605.0,99603.0,0.20079519]
[1746716542620,0.00013693,99605.0,99603.0,0.20079519]
[1746716543441,0.003,99604.0,99603.0,0.20079519]
[1746716543650,0.003,99604.0,99600.0,0.20080215]
[1746716543863,0.003,99604.0,99603.0,0.20079716]
[1746716544891,0.003,99604.0,99600.0,0.20080215]
[1746716544892,0.01003985,99603.0,99597.0,0.20080754]
[1746716545103,0.20082016,99592.0,99590.0,0.001]
[1746716545336,0.01004076,99594.0,99589.0,0.20082462]
[1746716545540,0.35004005,99601.0,99588.0,0.01004137]
[1746716545760,0.55084305,99601.0,99596.0,0.20080929]
[1746716545964,0.01004016,99600.0,99596.0,0.20080929]
[1746716546153,0.01004046,99597.0,99594.0,0.20081339]
[1746716546321,0.01004036,99598.0,99595.0,0.2008121]
[1746716546531,0.55084305,99601.0,99587.0,0.01004147]
[1746716546532,0.35004005,99601.0,99596.0,0.20081003]
[1746716546708,0.35004005,99601.0,99592.0,0.20081834]
[1746716546709,0.21084664,99599.0,99594.0,0.20081436]
[1746716546922,0.21084664,99599.0,99592.0,0.20081834]
[1746716546923,0.01004116,99590.0,99582.0,0.20083859]
[1746716547290,0.20085023,99577.0,99561.0,0.01004409]
[1746716547525,0.34,99576.0,99558.0,0.016]
[1746716547720,0.34,99576.0,99556.0,0.0471376]
[1746716547721,0.47366692,99576.0,99556.0,0.0471376]
[1746716547932,0.47366692,99576.0,99557.0,0.01004449]
[1746716548142,0.44066692,99576.0,99562.0,0.20087859]
[1746716548352,0.44066692,99576.0,99556.0,0.24802883]
[1746716548558,0.44066692,99576.0,99556.0,0.0471376]
[1746716548559,0.47276692,99576.0,99556.0,0.0471376]
[1746716548765,0.47276692,99576.0,99565.0,0.20087338]
[1746716549021,0.34,99578.0,99576.0,0.20085022]
[1746716549231,0.34,99576.0,99516.0,0.01]
[1746716549433,0.47316692,99576.0,99546.0,0.20091191]
[1746716549640,0.47316692,99576.0,99575.0,0.003]
[1746716549641,0.47716692,99576.0,99575.0,0.003]
[1746716550235,0.344,99576.0,99575.0,0.003]
[1746716550673,0.347,99576.0,99575.0,0.003]
[1746716551086,0.343,99576.0,99575.0,0.002]
[1746716551263,0.345,99576.0,99575.0,0.003]
[1746716551619,0.345,99576.0,99575.0,0.002]
[1746716551837,0.34,99576.0,99575.0,0.002]
[1746716552031,0.342,99576.0,99575.0,0.003]
[1746716552243,0.005,99576.0,99575.0,0.003]
[1746716552612,0.003,99576.0,99575.0,0.002]
[1746716553014,0.002,99576.0,99575.0,0.003]
[1746716553447,0.004,99576.0,99575.0,0.003]
[1746716553647,0.002,99576.0,99575.0,0.003]
[1746716554189,0.01004237,99578.0,99575.0,0.002]
[1746716554399,0.001,99576.0,99575.0,0.004]
[1746716554619,0.44166692,99576.0,99575.0,0.004]
[1746716555026,0.44166692,99576.0,99575.0,0.002]
[1746716555027,0.44066692,99576.0,99575.0,0.002]
[1746716555260,0.44066692,99576.0,99575.0,0.003]
[1746716555814,0.44066692,99576.0,99575.0,0.002]
[1746716556133,0.10566692,99576.0,99575.0,0.003]
[1746716556584,0.005,99576.0,99575.0,0.003]
[1746716556787,0.005,99576.0,99575.0,0.20385362]
[1746716556990,0.005,99576.0,99575.0,0.21925362]
[1746716557335,0.003,99576.0,99575.0,0.23355362]
[1746716557774,0.006,99576.0,99575.0,0.23455362]
[1746716557990,0.003,99576.0,99575.0,0.23455362]
[1746716558144,0.005,99576.0,99575.0,0.23455362]
[1746716558571,0.002,99576.0,99575.0,0.23355362]
[1746716558778,0.002,99576.0,99575.0,0.23455362]
[1746716559093,0.003,99576.0,99575.0,0.23655362]
[1746716559270,0.003,99576.0,99575.0,0.20585362]
[1746716559657,0.003,99576.0,99575.0,0.22125362]
[1746716559860,0.003,99576.0,99575.0,0.23655362]
[1746716560475,0.003,99576.0,99575.0,0.20585362]
[1746716560969,0.003,99576.0,99575.0,0.005]
[1746716561172,0.30451853,99576.0,99575.0,0.005]
[1746716562008,0.30351853,99576.0,99575.0,0.003]
[1746716562215,0.30451853,99576.0,99575.0,0.003]
[1746716562618,0.30751853,99576.0,99575.0,0.003]
[1746716562794,0.20685161,99576.0,99575.0,0.003]
[1746716563640,0.20385161,99576.0,99575.0,0.002]
[1746716563840,0.20585161,99576.0,99575.0,0.003]
[1746716565974,0.33771853,99576.0,99575.0,0.003]
[1746716568066,0.30651853,99576.0,99575.0,0.003]
[1746716570381,0.005,99576.0,99575.0,0.003]
[1746716572406,0.00487918,99576.0,99575.0,0.003]
[1746716572843,0.1379461,99576.0,99575.0,0.003]
[1746716573769,0.13784567,99576.0,99575.0,0.003]
[1746716574852,0.10544567,99576.0,99575.0,0.003]
[1746716575261,0.00477875,99576.0,99575.0,0.003]
[1746716576108,0.10544567,99576.0,99575.0,0.003]
[1746716576947,0.44544567,99576.0,99575.0,0.003]
[1746716577576,0.46174567,99576.0,99575.0,0.003]
[1746716577752,0.47734567,99576.0,99575.0,0.003]
[1746716578239,0.49188652,99576.0,99575.0,0.003]
[1746716579326,0.48710777,99576.0,99575.0,0.002]
[1746716579533,0.44566692,99576.0,99575.0,0.003]
[1746716580070,0.345,99576.0,99575.0,0.003]
[1746716580277,0.34,99576.0,99575.0,0.002]
[1746716580399,0.345,99576.0,99575.0,0.003]
[1746716580653,0.349,99576.0,99575.0,0.004]
[1746716580853,0.34,99576.0,99575.0,0.002]
[1746716581247,0.347,99576.0,99575.0,0.003]
[1746716582068,0.004,99576.0,99575.0,0.003]
[1746716582285,0.004,99576.0,99575.0,0.0359]
[1746716582707,0.35004157,99586.0,99576.0,0.20085161]
[1746716582880,0.35004157,99586.0,99583.0,0.20083668]
[1746716583078,0.35004157,99586.0,99583.0,0.0429182]
[1746716583263,0.01004187,99583.0,99576.0,0.20084757]
[1746716583469,0.01004237,99578.0,99575.0,0.002]
[1746716583672,0.01004217,99580.0,99577.0,0.20084864]
[1746716584364,0.35004207,99581.0,99575.0,0.002]
[1746716584567,0.001,99583.0,99580.0,0.20084354]
[1746716584921,0.001,99583.0,99582.0,0.2008395]
[1746716585120,0.01104187,99583.0,99580.0,0.20084354]
[1746716585341,0.01004207,99581.0,99578.0,0.20084586]
[1746716585680,0.34,99582.0,99578.0,0.20084586]
[1746716585852,0.35004197,99582.0,99578.0,0.20084586]
[1746716586026,0.01004207,99581.0,99578.0,0.20084586]
[1746716586232,0.34,99582.0,99576.0,0.20085161]
[1746716586435,0.01004207,99581.0,99578.0,0.20084562]
[1746716586628,0.35004197,99582.0,99579.0,0.20084503]
[1746716586860,0.001,99581.0,99579.0,0.20084503]
[1746716587457,0.35004197,99582.0,99579.0,0.20084503]
[1746716587614,0.001,99581.0,99579.0,0.20084503]
[1746716588023,0.001,99581.0,99578.0,0.001]
[1746716588024,0.200845,99580.0,99578.0,0.001]
[1746716588238,0.34,99579.0,99578.0,0.001]
[1746716588435,0.44066692,99579.0,99578.0,0.001]
[1746716589016,0.34,99577.0,99575.0,0.002]
[1746716589219,0.21088994,99578.0,99575.0,0.002]
[1746716589220,0.54085161,99576.0,99575.0,0.002]
[1746716590119,0.54085161,99576.0,99575.0,0.003]
[1746716590530,0.54085161,99576.0,99575.0,0.002]
[1746716590945,0.54185161,99576.0,99575.0,0.003]
[1746716591566,0.64251853,99576.0,99575.0,0.003]
[1746716592124,0.64151853,99576.0,99575.0,0.002]
[1746716592592,0.64251853,99576.0,99575.0,0.003]
[1746716593003,0.65801853,99576.0,99575.0,0.003]
[1746716593239,0.64151853,99576.0,99575.0,0.002]
[1746716593456,0.64351853,99576.0,99575.0,0.003]
[1746716593791,0.67421853,99576.0,99575.0,0.003]
[1746716594638,0.66121853,99576.0,99575.0,0.003]
[1746716595652,0.66091853,99576.0,99575.0,0.003]
[1746716595821,0.67721853,99576.0,99575.0,0.003]
[1746716596615,0.64551853,99576.0,99575.0,0.003]
[1746716597776,0.67641853,99576.0,99575.0,0.003]
[1746716598201,0.69095938,99576.0,99575.0,0.003]
[1746716598409,0.7916263,99576.0,99575.0,0.003]
[1746716598858,0.21630205,99551.0,99550.0,0.002]
[1746716599079,0.67108214,99551.0,99550.0,0.002]
[1746716600407,0.67208214,99551.0,99550.0,0.00306879]
[1746716600544,0.68662299,99551.0,99550.0,0.00306879]
[1746716600745,0.68662299,99551.0,99550.0,0.00406879]
[1746716600920,0.67208214,99551.0,99550.0,0.00406879]
[1746716601129,0.57132425,99540.0,99538.0,0.0039912]
[1746716601378,0.67199117,99540.0,99538.0,0.0039912]
[1746716602621,0.67399117,99540.0,99538.0,0.0039912]
[1746716603193,0.67399117,99540.0,99525.0,0.002]
[1746716603194,0.58699336,99526.0,99525.0,0.002]